fUST/lending_fUST_20250224
["ID","MTS","AMOUNT","RATE_DAILY","PERIOD"]
[354216826,1740351035592,-500.0,0.0001378,2]
[354216827,1740351035601,-500.0,0.0001378,2]
[354216829,1740351035610,-500.0,0.0001378,2]
[354216831,1740351035619,-500.0,0.0001378,2]
[354216833,1740351035628,-500.0,0.0001378,2]
[354216835,1740351035637,-500.0,0.0001378,2]
[354216837,1740351035646,-500.0,0.0001378,2]
[354216839,1740351035655,-500.0,0.0001378,2]
[354216841,1740351035665,-500.0,0.0001378,2]
[354216843,1740351035674,-500.0,0.0001378,2]
[354216845,1740351035682,-221.29965399,0.0001378,2]
[354216847,1740351035692,-500.0,0.0001378,2]
[354216849,1740351035701,-177.69597362,0.0001378,2]
[354216851,1740351035710,-500.0,0.0001378,2]
[354216853,1740351035720,-500.0,0.0001378,2]
[354216855,1740351035729,-612.9,0.0001378,2]
[354216857,1740351035738,-7691.95,0.0001378,2]
[354216859,1740351035747,-500.0,0.0001378,2]
[354216861,1740351035755,-3077.95,0.0001378,2]
[354216863,1740351035764,-500.0,0.0001378,2]
[354216864,1740351035773,-667.9,0.0001378,2]
[354216865,1740351035782,-558.58599049,0.0001378,2]
[354216866,1740351035791,-500.0,0.0001378,2]
[354216867,1740351035800,-500.0,0.0001378,2]
[354216868,1740351035809,-500.0,0.0001378,2]
[354216869,1740351035821,-500.0,0.0001378,2]
[354216870,1740351035830,-500.0,0.0001378,2]
[354216871,1740351035839,-500.0,0.0001378,2]
[354216872,1740351035848,-500.0,0.0001378,2]
[354216873,1740351035858,-500.0,0.0001378,2]
[354216874,1740351035867,-581.86088215,0.0001378,2]
[354216875,1740351035876,-500.0,0.0001378,2]
[354216876,1740351035885,-500.0,0.0001378,2]
[354216877,1740351035896,-500.0,0.0001378,2]
[354216878,1740351035905,-500.0,0.0001378,2]
[354216879,1740351035915,-1650.06,0.0001378,2]
[354216880,1740351035924,-500.0,0.0001378,2]
[354216881,1740351035933,-500.0,0.0001378,2]
[354216882,1740351035942,-672.14,0.0001378,2]
[354216883,1740351035951,-1413.72,0.0001378,2]
[354216884,1740351035960,-500.0,0.0001378,2]
[354216885,1740351035969,-500.0,0.0001378,2]
[354216886,1740351035979,-500.0,0.0001378,2]
[354216887,1740351035987,-500.0,0.0001378,2]
[354216888,1740351035996,-500.0,0.0001378,2]
[354216889,1740351036006,-500.0,0.0001378,2]
[354216890,1740351036015,-500.0,0.0001378,2]
[354216891,1740351036024,-500.0,0.0001378,2]
[354216892,1740351036033,-634.35,0.0001378,2]
[354216893,1740351036042,-500.0,0.0001378,2]
[354216895,1740351036051,-228.85094396,0.0001378,2]
[354216896,1740351036060,-500.0,0.0001378,2]
[354216898,1740351036070,-537.8942102,0.0001378,2]
[354216900,1740351036079,-615.86,0.0001378,2]
[354216902,1740351036089,-500.0,0.0001378,2]
[354216904,1740351036098,-465.00314481,0.0001378,2]
[354216906,1740351036107,-500.0,0.0001378,2]
[354216908,1740351036116,-3066.51,0.0001378,2]
[354216910,1740351036126,-506.40631908,0.0001378,2]
[354216912,1740351036136,-500.0,0.0001378,2]
[354216914,1740351036146,-500.0,0.0001378,2]
[354216916,1740351036155,-500.0,0.0001378,2]
[354216918,1740351036165,-500.0,0.0001378,2]
[354216920,1740351036174,-500.0,0.0001378,2]
[354216922,1740351036183,-500.0,0.0001378,2]
[354216924,1740351036192,-500.0,0.0001378,2]
[354216926,1740351036202,-500.0,0.0001378,2]
[354216928,1740351036216,-500.0,0.0001378,2]
[354216930,1740351036225,-152.0,0.0001381,2]
[354216932,1740351036234,-584.44,0.00013862,2]
[354216934,1740351036243,-584.44,0.00013862,2]
[354216936,1740351036252,-500.0,0.00013862,2]
[354216938,1740351036261,-500.0,0.00013862,2]
[354216940,1740351036270,-500.0,0.00013862,2]
[354216942,1740351036279,-500.0,0.00013862,2]
[354216944,1740351036288,-500.0,0.00013862,2]
[354216946,1740351036297,-500.0,0.00013862,2]
[354216948,1740351036306,-500.0,0.00013862,2]
[354216950,1740351036315,-500.0,0.00013862,2]
[354216952,1740351036324,-500.0,0.00013862,2]
[354216954,1740351036333,-500.0,0.00013862,2]
[354216956,1740351036342,-500.0,0.00013862,2]
[354216958,1740351036351,-500.0,0.00013862,2]
[354216960,1740351036360,-500.0,0.00013862,2]
[354216962,1740351036369,-500.0,0.00013862,2]
[354216964,1740351036378,-187.66631175,0.00013862,2]
[354216966,1740351036387,-500.0,0.00013862,2]
[354216968,1740351036397,-500.0,0.00013862,2]
[354216970,1740351036406,-500.0,0.00013862,2]
[354216972,1740351036415,-500.0,0.00013862,2]
[354216974,1740351036424,-500.0,0.00013862,2]
[354216976,1740351036433,-500.0,0.00013862,2]
[354216978,1740351036442,-500.0,0.00013862,2]
[354216980,1740351036451,-500.0,0.00013862,2]
[354216982,1740351036460,-500.0,0.00013862,2]
[354216984,1740351036469,-500.0,0.00013862,2]
[354216986,1740351036478,-500.0,0.00013862,2]
[354216988,1740351036487,-500.0,0.00013862,2]
[354216990,1740351036496,-500.0,0.00013862,2]
[354216992,1740351036506,-500.0,0.00013863,2]
[354216994,1740351036515,-500.0,0.00013863,2]
[354216996,1740351036524,-500.0,0.00013863,2]
[354216998,1740351036533,-700.86,0.00013863,2]
[354217000,1740351036543,-500.0,0.00013863,2]
[354217002,1740351036552,-500.0,0.00013863,2]
[354217004,1740351036562,-514.48,0.00013863,2]
[354217006,1740351036572,-500.0,0.00013863,2]
[354217008,1740351036582,-571.51,0.00013863,2]
[354217010,1740351036591,-500.0,0.00013863,2]
[354217012,1740351036601,-500.0,0.00013863,2]
[354217014,1740351036611,-500.0,0.00013863,2]
[354217017,1740351036620,-500.0,0.00013863,2]
[354217018,1740351036629,-500.0,0.00013863,2]
[354217020,1740351036638,-213.10427045,0.00013863,2]
[354217023,1740351036651,-500.0,0.00013863,2]
[354217025,1740351036660,-500.0,0.00013863,2]
[354217027,1740351036670,-500.0,0.00013863,2]
[354217029,1740351036679,-500.0,0.00013863,2]
[354217031,1740351036688,-500.0,0.00013863,2]
[354217033,1740351036697,-500.0,0.00013863,2]
[354217035,1740351036707,-846.83,0.00013863,2]
[354217037,1740351036715,-502.34,0.00013863,2]
[354217039,1740351036724,-500.0,0.00013863,2]
[354217041,1740351036734,-500.0,0.00013863,2]
[354217043,1740351036743,-232.54787749,0.00013863,2]
[354217045,1740351036752,-590.92,0.00013863,2]
[354217047,1740351036761,-174.53427657,0.00013863,2]
[354217057,1740351036855,-325.46572343,0.00013863,2]
[354217059,1740351036864,-500.0,0.00013863,2]
[354217061,1740351036873,-500.0,0.00013863,2]
[354217063,1740351036882,-540.94,0.00013863,2]
[354217065,1740351036891,-500.0,0.00013863,2]
[354217067,1740351036902,-500.0,0.00013863,2]
[354217069,1740351036912,-500.0,0.00013863,2]
[354217071,1740351036921,-500.0,0.00013863,2]
[354217073,1740351036930,-500.0,0.00013863,2]
[354217075,1740351036939,-500.0,0.00013863,2]
[354217077,1740351036949,-500.0,0.00013863,2]
[354217079,1740351036958,-500.0,0.00013863,2]
[354217081,1740351036967,-7691.95,0.00013863,2]
[354217083,1740351036976,-500.0,0.00013863,2]
[354217085,1740351036985,-3077.95,0.00013863,2]
[354217087,1740351036994,-500.0,0.00013863,2]
[354217089,1740351037003,-667.9,0.00013863,2]
[354217091,1740351037012,-500.0,0.00013863,2]
[354217093,1740351037022,-500.0,0.00013863,2]
[354217095,1740351037031,-462.83709241,0.00013863,2]
[354217097,1740351037041,-500.0,0.00013863,2]
[354217099,1740351037051,-500.0,0.00013863,2]
[354217101,1740351037060,-500.0,0.00013863,2]
[354217103,1740351037069,-500.0,0.00013863,2]
[354217105,1740351037079,-500.0,0.00013863,2]
[354217107,1740351037088,-500.0,0.00013863,2]
[354217109,1740351037102,-500.0,0.00013863,2]
[354217111,1740351037111,-500.0,0.00013863,2]
[354217113,1740351037121,-504.16024629,0.00013863,2]
[354217115,1740351037130,-1650.06,0.00013863,2]
[354217117,1740351037140,-500.0,0.00013863,2]
[354217119,1740351037149,-500.0,0.00013863,2]
[354217120,1740351037158,-672.14,0.00013863,2]
[354217123,1740351037167,-1413.72,0.00013863,2]
[354217124,1740351037176,-500.0,0.00013863,2]
[354217126,1740351037186,-500.0,0.00013863,2]
[354217128,1740351037195,-500.0,0.00013863,2]
[354217130,1740351037205,-634.35,0.00013863,2]
[354217132,1740351037214,-500.0,0.00013863,2]
[354217134,1740351037224,-500.0,0.00013863,2]
[354217136,1740351037233,-615.86,0.00013863,2]
[354217138,1740351037242,-500.0,0.00013863,2]
[354217140,1740351037252,-500.0,0.00013863,2]
[354217150,1740351037261,-3066.51,0.00013863,2]
[354217154,1740351037352,-500.0,0.00013863,2]
[354217156,1740351037361,-500.0,0.00013863,2]
[354217158,1740351037370,-500.0,0.00013863,2]
[354217160,1740351037380,-500.0,0.00013863,2]
[354217162,1740351037389,-500.0,0.00013863,2]
[354217164,1740351037398,-500.0,0.00013863,2]
[354217166,1740351037412,-500.0,0.00013863,2]
[354217168,1740351037421,-500.0,0.00013863,2]
[354217169,1740351037430,-500.0,0.00013863,2]
[354217171,1740351037439,-500.0,0.00013917,2]
[354217173,1740351037449,-501.12293708,0.00013921,2]
[354217175,1740351037458,-584.44,0.00013944,2]
[354217177,1740351037467,-584.44,0.00013944,2]
[354217179,1740351037476,-500.0,0.00013945,2]
[354217181,1740351037485,-154.666,0.00013945,2]
[354217184,1740351037495,-500.0,0.00013945,2]
[354217185,1740351037504,-500.0,0.00013945,2]
[354217188,1740351037514,-700.86,0.00013945,2]
[354217190,1740351037522,-500.0,0.00013945,2]
[354217191,1740351037531,-500.0,0.00013945,2]
[354217193,1740351037540,-500.0,0.00013945,2]
[354217195,1740351037549,-571.51,0.00013945,2]
[354217197,1740351037559,-500.0,0.00013945,2]
[354217199,1740351037569,-477.24,0.00013945,2]
[354217201,1740351037578,-505.47012224,0.00013945,2]
[354217203,1740351037588,-500.0,0.00013945,2]
[354217205,1740351037597,-500.0,0.00013945,2]
[354217207,1740351037606,-846.83,0.00013945,2]
[354217209,1740351037615,-502.34,0.00013945,2]
[354217211,1740351037624,-590.92,0.00013945,2]
[354217213,1740351037634,-500.0,0.00013945,2]
[354217215,1740351037643,-500.0,0.00013945,2]
[354217217,1740351037652,-500.0,0.00013945,2]
[354217220,1740351037662,-500.0,0.00013945,2]
[354217222,1740351037672,-500.0,0.00013945,2]
[354217223,1740351037680,-500.0,0.00013945,2]
[354217225,1740351037690,-500.0,0.00013945,2]
[354217227,1740351037700,-500.0,0.00013945,2]
[354217229,1740351037709,-7691.95,0.00013945,2]
[354217231,1740351037718,-500.0,0.00013945,2]
[354217233,1740351037727,-3077.95,0.00013945,2]
[354217235,1740351037736,-667.9,0.00013945,2]
[354217238,1740351037745,-500.0,0.00013945,2]
[354217239,1740351037757,-500.0,0.00013945,2]
[354217241,1740351037767,-500.0,0.00013945,2]
[354217243,1740351037776,-500.0,0.00013945,2]
[354217245,1740351037785,-500.0,0.00013945,2]
[354217248,1740351037794,-500.0,0.00013945,2]
[354217250,1740351037803,-500.0,0.00013945,2]
[354217251,1740351037814,-500.0,0.00013945,2]
[354217253,1740351037824,-500.0,0.00013945,2]
[354217255,1740351037834,-500.0,0.00013945,2]
[354217257,1740351037844,-1650.06,0.00013945,2]
[354217260,1740351037853,-500.0,0.00013945,2]
[354217262,1740351037864,-500.0,0.00013945,2]
[354217264,1740351037874,-672.14,0.00013945,2]
[354217266,1740351037883,-1413.72,0.00013945,2]
[354217268,1740351037891,-506.261334,0.00013945,2]
[354217269,1740351037900,-447.77546244,0.00013945,2]
[354217271,1740351037909,-500.0,0.00013945,2]
[354217273,1740351037919,-634.35,0.00013945,2]
[354217275,1740351037928,-615.86,0.00013945,2]
[354217278,1740351037937,-625.0,0.00013945,2]
[354217281,1740351037947,-3066.51,0.00013945,2]
[354217283,1740351037956,-500.0,0.00013945,2]
[354217285,1740351037966,-500.0,0.00013945,2]
[354217287,1740351037975,-500.0,0.00013945,2]
[354217289,1740351037985,-500.0,0.00013945,2]
[354217291,1740351037994,-500.0,0.00013945,2]
[354217293,1740351038003,-500.0,0.00013945,2]
[354217295,1740351038012,-500.0,0.00013952,2]
[354217297,1740351038023,-500.0,0.00013969,2]
[354217298,1740351038032,-500.36053896,0.00014021,2]
[354217300,1740351038041,-584.44,0.00014025,2]
[354217302,1740351038052,-584.44,0.00014025,2]
[354217304,1740351038061,-584.44,0.00014026,2]
[354217306,1740351038072,-500.0,0.00014027,2]
[354217308,1740351038080,-500.0,0.00014027,2]
[354217310,1740351038090,-700.86,0.00014027,2]
[354217312,1740351038099,-500.0,0.00014027,2]
[354217315,1740351038108,-500.0,0.00014027,2]
[354217316,1740351038117,-500.0,0.00014027,2]
[354217318,1740351038126,-571.51,0.00014027,2]
[354217320,1740351038135,-500.0,0.00014027,2]
[354217323,1740351038145,-500.0,0.00014027,2]
[354217324,1740351038154,-500.0,0.00014027,2]
[354217326,1740351038163,-846.83,0.00014027,2]
[354217328,1740351038172,-502.34,0.00014027,2]
[354217330,1740351038181,-590.92,0.00014027,2]
[354217332,1740351038191,-500.0,0.00014027,2]
[354217334,1740351038200,-273.99658761,0.00014027,2]
[354217338,1740351038223,-500.0,0.00013862,2]
[354217340,1740351038232,-500.0,0.00013862,2]
[354217342,1740351038242,-107.60019071,0.00014027,2]
[354217344,1740351038250,-500.0,0.00014027,2]
[354217346,1740351038259,-500.0,0.00014027,2]
[354217348,1740351038269,-621.37070929,0.00014027,2]
[354217351,1740351038289,-506.32162073,0.00013862,2]
[354217353,1740351038298,-261.87473389,0.00013862,2]
[354217628,1740351040872,-500.0,0.00013698,2]
[354217630,1740351040882,-500.0,0.00013698,2]
[354217632,1740351040891,-500.0,0.00013698,2]
[354217634,1740351040901,-500.83594243,0.00013698,2]
[354217636,1740351040911,-451.8368394,0.00013698,2]
[354217638,1740351040920,-500.0,0.0001378,2]
[354217640,1740351040929,-500.0,0.0001378,2]
[354217642,1740351040938,-238.12526611,0.00013862,2]
[354217644,1740351040947,-500.0,0.00013862,2]
[354217645,1740351040956,-500.0,0.00013862,2]
[354217647,1740351040965,-500.0,0.00013862,2]
[354217649,1740351040974,-500.0,0.00013862,2]
[354217652,1740351040984,-500.0,0.00013862,2]
[354217654,1740351040994,-500.0,0.00013862,2]
[354217656,1740351041003,-500.0,0.00013862,2]
[354217658,1740351041012,-500.0,0.00013862,2]
[354217660,1740351041022,-500.0,0.00013862,2]
[354217662,1740351041031,-500.0,0.00013862,2]
[354217664,1740351041040,-500.0,0.00013862,2]
[354217666,1740351041049,-500.0,0.00013862,2]
[354217669,1740351041059,-500.0,0.00013862,2]
[354217672,1740351041068,-500.0,0.00013862,2]
[354217675,1740351041077,-500.0,0.00013862,2]
[354217678,1740351041086,-500.0,0.00013862,2]
[354217681,1740351041096,-500.0,0.00013862,2]
[354217683,1740351041105,-500.0,0.00013862,2]
[354217685,1740351041114,-500.0,0.00013862,2]
[354217687,1740351041124,-500.0,0.00013862,2]
[354217689,1740351041133,-500.0,0.00013862,2]
[354217691,1740351041143,-500.0,0.00013862,2]
[354217693,1740351041152,-500.0,0.00013862,2]
[354217695,1740351041162,-500.0,0.00013862,2]
[354217697,1740351041171,-500.0,0.00013862,2]
[354217699,1740351041181,-500.0,0.00013862,2]
[354217701,1740351041191,-500.0,0.00013862,2]
[354217703,1740351041200,-500.0,0.00013862,2]
[354217705,1740351041209,-500.0,0.00013862,2]
[354217707,1740351041218,-500.0,0.00013862,2]
[354217709,1740351041227,-500.0,0.00013862,2]
[354217711,1740351041236,-482.93801906,0.00013862,2]
[354217713,1740351041248,-17.06198094,0.00013862,2]
[354217715,1740351041257,-500.0,0.00013862,2]
[354217717,1740351041266,-500.0,0.00013862,2]
[354217719,1740351041275,-500.0,0.00013862,2]
[354217721,1740351041284,-500.0,0.00013862,2]
[354217723,1740351041293,-500.0,0.00013862,2]
[354217725,1740351041302,-500.0,0.00013862,2]
[354217728,1740351041312,-500.0,0.00013862,2]
[354217730,1740351041321,-500.0,0.00013863,2]
[354217732,1740351041330,-500.0,0.00013863,2]
[354217734,1740351041339,-500.0,0.00013945,2]
[354217735,1740351041348,-7070.57929071,0.00014027,2]
[354217737,1740351041357,-3077.95,0.00014027,2]
[354217740,1740351041366,-667.9,0.00014027,2]
[354217742,1740351041375,-500.0,0.00014027,2]
[354217744,1740351041384,-500.0,0.00014027,2]
[354217754,1740351041469,-500.0,0.00014027,2]
[354217756,1740351041478,-500.0,0.00014027,2]
[354217758,1740351041487,-500.0,0.00014027,2]
[354217760,1740351041496,-500.0,0.00014027,2]
[354217762,1740351041505,-253.83,0.00014027,2]
[354217764,1740351041514,-500.0,0.00014027,2]
[354217766,1740351041523,-1650.06,0.00014027,2]
[354217768,1740351041532,-500.0,0.00014027,2]
[354217770,1740351041541,-500.0,0.00014027,2]
[354217772,1740351041550,-672.14,0.00014027,2]
[354217774,1740351041559,-1413.72,0.00014027,2]
[354217776,1740351041569,-500.0,0.00014027,2]
[354217778,1740351041578,-634.35,0.00014027,2]
[354217780,1740351041587,-615.86,0.00014027,2]
[354217782,1740351041596,-3066.51,0.00014027,2]
[354217784,1740351041606,-500.0,0.00014027,2]
[354217786,1740351041615,-500.0,0.00014027,2]
[354217788,1740351041624,-500.0,0.00014027,2]
[354217790,1740351041633,-500.0,0.00014027,2]
[354217792,1740351041642,-500.0,0.00014027,2]
[354217794,1740351041651,-500.0,0.00014027,2]
[354217796,1740351041661,-500.0,0.00014027,2]
[354217798,1740351041670,-500.0,0.00014034,2]
[354217800,1740351041679,-584.44,0.00014108,2]
[354217802,1740351041688,-584.44,0.00014108,2]
[354217804,1740351041697,-500.0,0.00014109,2]
[354217806,1740351041707,-500.0,0.00014109,2]
[354217808,1740351041716,-700.86,0.00014109,2]
[354217810,1740351041725,-500.0,0.00014109,2]
[354217812,1740351041735,-500.0,0.00014109,2]
[354217814,1740351041744,-500.0,0.00014109,2]
[354217816,1740351041752,-571.51,0.00014109,2]
[354217818,1740351041762,-500.0,0.00014109,2]
[354217820,1740351041771,-500.0,0.00014109,2]
[354217822,1740351041780,-846.83,0.00014109,2]
[354217824,1740351041789,-590.92,0.00014109,2]
[354217826,1740351041797,-500.0,0.00014109,2]
[354217828,1740351041807,-500.0,0.00014109,2]
[354217830,1740351041820,-7691.95,0.00014109,2]
[354217832,1740351041829,-3077.95,0.00014109,2]
[354217834,1740351041838,-667.9,0.00014109,2]
[354217836,1740351041848,-500.0,0.00014109,2]
[354217838,1740351041858,-500.0,0.00014109,2]
[354217840,1740351041867,-500.0,0.00014109,2]
[354217842,1740351041877,-500.0,0.00014109,2]
[354217844,1740351041886,-500.0,0.00014109,2]
[354217846,1740351041896,-500.0,0.00014109,2]
[354217848,1740351041905,-500.0,0.00014109,2]
[354217850,1740351041914,-1650.06,0.00014109,2]
[354217852,1740351041923,-500.0,0.00014109,2]
[354217854,1740351041932,-500.0,0.00014109,2]
[354217856,1740351041941,-672.14,0.00014109,2]
[354217858,1740351041950,-1413.72,0.00014109,2]
[354217860,1740351041960,-634.35,0.00014109,2]
[354217862,1740351041969,-615.86,0.00014109,2]
[354217864,1740351041978,-3066.51,0.00014109,2]
[354217866,1740351041987,-463.49425157,0.00014109,2]
[354217868,1740351041996,-240.09,0.00014109,2]
[354217870,1740351042005,-500.0,0.00014109,2]
[354217872,1740351042014,-500.0,0.00014109,2]
[354217874,1740351042023,-500.0,0.00014109,2]
[354217876,1740351042032,-500.0,0.00014109,2]
[354217878,1740351042041,-500.0,0.00014109,2]
[354217880,1740351042050,-584.44,0.0001419,2]
[354217882,1740351042059,-500.0,0.00014191,2]
[354217884,1740351042068,-500.0,0.00014191,2]
[354217886,1740351042078,-700.86,0.00014191,2]
[354217888,1740351042087,-500.0,0.00014191,2]
[354217890,1740351042096,-500.0,0.00014191,2]
[354217892,1740351042106,-500.0,0.00014191,2]
[354217894,1740351042114,-571.51,0.00014191,2]
[354217896,1740351042123,-617.56482368,0.00014191,2]
[354217898,1740351042132,-500.0,0.00014191,2]
[354217900,1740351042142,-846.83,0.00014191,2]
[354217903,1740351042151,-590.92,0.00014191,2]
[354217904,1740351042160,-500.0,0.00014191,2]
[354217906,1740351042170,-7691.95,0.00014191,2]
[354217908,1740351042179,-3077.95,0.00014191,2]
[354217910,1740351042188,-667.9,0.00014191,2]
[354217912,1740351042197,-500.0,0.00014191,2]
[354217914,1740351042207,-500.0,0.00014191,2]
[354217916,1740351042216,-500.0,0.00014191,2]
[354217919,1740351042225,-500.0,0.00014191,2]
[354217920,1740351042235,-1650.06,0.00014191,2]
[354217923,1740351042245,-429.09655015,0.00014191,2]
[354217924,1740351042254,-672.14,0.00014191,2]
[354217927,1740351042263,-1413.72,0.00014191,2]
[354217928,1740351042272,-634.35,0.00014191,2]
[354217931,1740351042281,-615.86,0.00014191,2]
[354217932,1740351042290,-3066.51,0.00014191,2]
[354217935,1740351042299,-500.0,0.00014191,2]
[354217936,1740351042309,-500.0,0.00014191,2]
[354217938,1740351042318,-500.0,0.00014191,2]
[354217940,1740351042327,-500.0,0.00014191,2]
[354217941,1740351042336,-300.0,0.000142,5]
[354217942,1740351042346,-584.44,0.00014272,2]
[354217943,1740351042355,-500.0,0.00014273,2]
[354217944,1740351042364,-500.0,0.00014273,2]
[354217945,1740351042373,-700.86,0.00014273,2]
[354217946,1740351042382,-636.77881154,0.00014273,2]
[354217947,1740351042392,-500.0,0.00014273,2]
[354217948,1740351042401,-558.06398936,0.00014273,2]
[354217949,1740351042409,-571.51,0.00014273,2]
[354217950,1740351042419,-846.83,0.00014273,2]
[354217951,1740351042427,-590.92,0.00014273,2]
[354217953,1740351042436,-7691.95,0.00014273,2]
[354217954,1740351042446,-3077.95,0.00014273,2]
[354217956,1740351042456,-667.9,0.00014273,2]
[354217958,1740351042465,-500.0,0.00014273,2]
[354217960,1740351042474,-500.0,0.00014273,2]
[354217962,1740351042483,-500.0,0.00014273,2]
[354217964,1740351042493,-500.0,0.00014273,2]
[354217966,1740351042502,-1650.06,0.00014273,2]
[354217968,1740351042511,-672.14,0.00014273,2]
[354217970,1740351042521,-1413.72,0.00014273,2]
[354217972,1740351042530,-634.35,0.00014273,2]
[354217974,1740351042538,-615.86,0.00014273,2]
[354217976,1740351042547,-3066.51,0.00014273,2]
[354217978,1740351042557,-500.0,0.00014273,2]
[354217980,1740351042566,-500.0,0.00014273,2]
[354217982,1740351042575,-500.0,0.00014273,2]
[354217984,1740351042584,-518.79189806,0.00014273,2]
[354217986,1740351042593,-500.0,0.00014286,2]
[354217988,1740351042603,-499.0,0.00014286,2]
[354217990,1740351042611,-2200.0,0.00014312,2]
[354217992,1740351042620,-157.68855767,0.00014315,2]
[354217994,1740351042629,-584.44,0.00014354,2]
[354217996,1740351042638,-584.44,0.00014355,2]
[354217998,1740351042647,-584.44,0.00014355,2]
[354218000,1740351042657,-584.44,0.00014355,2]
[354218002,1740351042666,-584.44,0.00014355,2]
[354218004,1740351042675,-584.65,0.00014355,2]
[354218006,1740351042684,-151.0,0.00014355,2]
[354218008,1740351042693,-500.0,0.00014356,2]
[354218011,1740351042702,-500.0,0.00014356,2]
[354218012,1740351042711,-700.86,0.00014356,2]
[354218014,1740351042721,-500.0,0.00014356,2]
[354218016,1740351042730,-571.51,0.00014356,2]
[354218019,1740351042739,-846.83,0.00014356,2]
[354218020,1740351042748,-590.92,0.00014356,2]
[354218022,1740351042757,-7691.95,0.00014356,2]
[354218025,1740351042766,-3077.95,0.00014356,2]
[354218027,1740351042776,-667.9,0.00014356,2]
[354218028,1740351042785,-500.0,0.00014356,2]
[354218030,1740351042795,-500.0,0.00014356,2]
[354218032,1740351042804,-500.0,0.00014356,2]
[354218034,1740351042815,-500.0,0.00014356,2]
[354218036,1740351042826,-1650.06,0.00014356,2]
[354218038,1740351042835,-672.14,0.00014356,2]
[354218040,1740351042845,-1413.72,0.00014356,2]
[354218043,1740351042855,-634.35,0.00014356,2]
[354218045,1740351042864,-615.86,0.00014356,2]
[354218047,1740351042873,-3066.51,0.00014356,2]
[354218048,1740351042882,-500.0,0.00014356,2]
[354218051,1740351042893,-500.0,0.00014356,2]
[354218053,1740351042903,-500.0,0.00014356,2]
[354218055,1740351042912,-151.303559,0.00014438,2]
[354218057,1740351042922,-500.0,0.00014438,2]
[354218059,1740351042931,-500.0,0.00014438,2]
[354218061,1740351042940,-700.86,0.00014438,2]
[354218062,1740351042950,-500.0,0.00014438,2]
[354218064,1740351042959,-571.51,0.00014438,2]
[354218066,1740351042969,-846.83,0.00014438,2]
[354218068,1740351042978,-151.0,0.00014438,2]
[354218070,1740351042987,-590.92,0.00014438,2]
[354218073,1740351042997,-208.904446,0.00014438,2]
[354218074,1740351043006,-577.28153213,0.00014438,2]
[354218079,1740351043020,-1352.64554896,0.00014438,2]
[354218158,1740351043605,-396.0,0.00014056,2]
[354218160,1740351043615,-2104.0,0.00014438,2]
[354218162,1740351043626,-3658.02291891,0.00014438,2]
[354218164,1740351043635,-3077.95,0.00014438,2]
[354218166,1740351043645,-667.9,0.00014438,2]
[354218168,1740351043654,-500.0,0.00014438,2]